Cogmind - Beta 14 @@@ ROGUE MODE // 2025.01.08 @ 21:01:42 Player: JoshKwa Result: Destroyed by G-34 Mercenary with Small Laser Performance ------------- Evolutions (1) 500 Regions Visited (3) 600 Robots Destroyed (22) 110 Value Destroyed (507) 507 Prototype IDs (0) 0 Alien Tech Used (0) 0 Bonus (24) 24 TOTAL SCORE: 1741 Bonus ------- High Alert Combat Kills 24 Cogmind --------- Core Integrity 0/400 Matter 263/300 Energy 98/100 System Corruption 0% Temperature Cool (19) Movement Walking (120) Location -9/Materials Parts ------- > --- POWER (2) -------- (None) > --- PROPULSION (2) --- Carbon-fiber Leg > --- UTILITY (2) ------ Improved Targeting Computer > --- WEAPON (3) ------- Maul > --- INVENTORY (5) ---- Light Treads Aluminum Leg Aluminum Leg Heat Sink Sensor Array Peak State ------------ > --- POWER ------------ Improved Ion Engine > --- PROPULSION ------- Aluminum Leg Carbon-fiber Leg > --- UTILITY ---------- Structural Scanner Improved Targeting Computer > --- WEAPON ----------- Light Assault Rifle Maul Mining Claw > --- INVENTORY -------- Light Treads Aluminum Leg Sensor Array [Rating: 13] Favorites ----------- Power Light Ion Engine Engine Light Ion Engine Propulsion Wheel Leg Carbon-fiber Leg Wheel Wheel Utility Targeting Computer Device Sensor Array Processor Targeting Computer Weapon Light Assault Rifle Energy Gun Medium Laser Ballistic Gun Light Assault Rifle Launcher Mini Grenade Launcher Impact Weapon Maul Slashing Weapon Mining Claw Build | -11 -10 -10 -9 ------- Run | Yrd Mat Min Mat Slots Evolved 2 | . . . 2 Power 1 | . . . 1 Propulsion . | . . . . Utility . | . . . . Weapon 1 | . . . 1 Parts Attached 23 | 5 2 4 12 Power 6 | 1 . 2 3 Engine 6 | 1 . 2 3 Core . | . . . . Reactor . | . . . . Propulsion 5 | 2 . . 3 Treads . | . . . . Leg 2 | . . . 2 Wheel 3 | 2 . . 1 Hover . | . . . . Flight . | . . . . Utility 4 | . 2 . 2 Device 2 | . 1 . 1 Storage . | . . . . Processor 2 | . 1 . 1 Hackware . | . . . . Protection . | . . . . Artifact . | . . . . Weapon 8 | 2 . 2 4 Energy Gun 2 | 1 . 1 . Energy Cannon . | . . . . Ballistic Gun 3 | 1 . 1 1 Ballistic Cannon . | . . . . Launcher 1 | . . . 1 Special Weapon . | . . . . Impact Weapon 1 | . . . 1 Slashing Weapon 1 | . . . 1 Piercing Weapon . | . . . . Special Melee Weapon . | . . . . Unidentified Prototypes . | . . . . Parts Lost 12 | . . . 12 Power 3 | . . . 3 Propulsion 3 | . . . 3 Utility 2 | . . . 2 Weapon 4 | . . . 4 Highest Loss Streak 6 | . . . 6 To Critical Strikes . | . . . . Average Slot Usage (%) 93 | . 97 99 86 Engine 15 | . 14 14 17 Leg 1 | . . . 3 Wheel 23 | . 28 28 16 Device 12 | . 12 14 10 Processor 12 | . 12 14 11 Energy Gun 4 | . 14 3 . Ballistic Gun 18 | . 14 23 16 Launcher 3 | . . . 7 Slashing Weapon 1 | . . . 3 Peak Build Rating 13 | 5 7 7 13 Average Rating 7 | 3 6 6 9 On Entrance 4 | . 5 7 7 Naked Turns . | . . . . Heaviest Build 14 | 6 7 7 14 Greatest Support 25 | 20 20 20 25 Greatest Overweight (x) 4 | . . . 4 Average Overweight (x) . | . . . . Largest Inventory Capacity 5 | 5 5 5 5 Average Capacity 5 | 5 5 5 5 Most Carried 5 | 3 3 5 5 Average Carried 3 | . 2 4 3 Final Capacity 5 | 5 5 5 5 Final Carried 5 | 1 3 4 5 Class Distribution -------------------- 76% | Mutant 18% | Gunner 4% | Scavenger-Gunner Dominant Class ---------------- Mutant | -10/Materials Mutant | -10/Mines Gunner | -9/Materials Resources | -11 -10 -10 -9 ----------- Run | Yrd Mat Min Mat Matter Collected 488 | 225 51 57 155 Remotely . | . . . . Salvage Created 533 | . 114 115 304 Parts 43 | . 5 13 25 Haulers Intercepted . | . . . . Recyclers Shooed . | . . . . Parts Field Recycled . | . . . . Retrieved Matter . | . . . . Parts Self-Destructed . | . . . . Prevented . | . . . . Kills | -11 -10 -10 -9 ------- Run | Yrd Mat Min Mat Combat Hostiles Destroyed 16 | . 2 7 7 Melee 2 | . . . 2 Guns 10 | . 2 7 1 AOE 3 | . . . 3 Classes Destroyed 8 | . 2 2 4 Worker 1 | . . . 1 Builder 3 | . . . 3 Tunneler 1 | . . . 1 Watcher 2 | . 1 . 1 Swarmer 6 | . . 6 . Grunt 6 | . 2 . 4 Sentry 3 | . . . 3 Assembled 1 | . . 1 . Best Kill Streak 4 | . 3 3 4 Combat Bots Only 4 | . 2 3 4 Max Kills in Single Turn 3 | . 1 2 3 Gunslinging 1 | . . 1 . Exploded 2 | . . . 2 Melee 1 | . . . 1 Uniques/NPCs Destroyed . | . . . . Combat | -11 -10 -10 -9 -------- Run | Yrd Mat Min Mat Hostile Shots Fired 135 | . 14 20 101 Missed 39 | . 3 6 30 Damage Taken 1410 | . 147 123 1140 Core 499 | . 59 33 407 Absorbed by Shields . | . . . . Core Remaining (%) 81 | 100 . 63 . Volleys Fired 38 | . 13 10 15 Largest 3 | . 2 2 3 Hottest 70 | . 70 70 70 Shots Fired 83 | . 26 20 37 Gun 72 | . 26 20 26 Cannon . | . . . . Launcher 11 | . . . 11 Special . | . . . . Kinetic 51 | . 13 12 26 Thermal 16 | . 13 3 . Explosive 11 | . . . 11 Electromagnetic 5 | . . 5 . Robot Hit Streak 13 | . 11 13 9 Robot Miss Streak 2 | . 2 2 2 Penetration Max . | . . . . Secondary Targets 1 | . . 1 . Max Gunslinging Chain 1 | . . 1 . Shots Hit Robots 64 | . 19 12 33 Core Hits 37 | . 9 11 17 Critical Kills . | . . . . Critical Parts Destroyed 3 | . . . 3 Critical Strikes 5 | . 1 1 3 Burn 1 | . 1 . . Corrupt 1 | . . 1 . Smash 3 | . . . 3 Melee Attacks 23 | . . . 23 Impact 9 | . . . 9 Slashing 14 | . . . 14 Piercing . | . . . . Sneak Attacks . | . . . . Combat Hostiles . | . . . . Follow-up Attacks 1 | . . . 1 Damage Inflicted 1482 | . 226 128 1128 Guns 423 | . 223 118 82 Cannons . | . . . . Explosions 538 | . . . 538 Melee 506 | . . . 506 Ramming 15 | . 3 10 2 Kinetic 216 | . 86 48 82 Thermal 162 | . 137 25 . Explosive 538 | . . . 538 Electromagnetic 45 | . . 45 . Impact 270 | . . . 270 Slashing 236 | . . . 236 Piercing . | . . . . Highest Corruption 2 | . . 2 . Average Corruption 2 | . . 2 . Corruption Purged . | . . . . Corruption Blocked . | . . . . Effects 1 | . . 1 . Message Errors 1 | . . 1 . Overload Shots . | . . . . Overflow Damage 157 | . . . 157 Projectiles . | . . . . Explosions 4 | . . . 4 Melee 153 | . . . 153 Knockbacks 4 | . . 1 3 Impact 4 | . . 1 3 Kinetic . | . . . . Secondary . | . . . . Self-Inflicted Damage 235 | . 1 4 230 Shots 4 | . . . 4 Rammed 6 | . 1 4 1 Targets Rammed 6 | . 1 4 1 Kicked . | . . . . Crushed . | . . . . Highest Temperature 135 | . 135 50 118 Average Temperature 45 | . 62 24 37 Received Heat Transfer 477 | . 84 . 393 Siege Activations . | . . . . Robots Corrupted 1 | . . . 1 Combat Hostiles 1 | . . . 1 Parts Fried 1 | . . . 1 Impact Corruptions 4 | . . . 4 Robots Melted . | . . . . Combat Hostiles . | . . . . Parts Melted . | . . . . Heat Transferred 555 | . 481 74 . Parts Sabotaged . | . . . . Parts Stolen . | . . . . Parts Stripped . | . . . . Power Chain Reactions . | . . . . Alert | -11 -10 -10 -9 ------- Run | Yrd Mat Min Mat Peak Influence 470 | . 76 229 470 Initial 89 | . . 29 89 Average 180 | . 28 196 276 Maximum Alert Level 2 | . . 1 2 Low Security (%) 48 | 100 100 28 29 Level 1 44 | . . 71 52 Level 2 6 | . . . 17 Level 3 . | . . . . Level 4 . | . . . . Level 5 . | . . . . High Security . | . . . . Max Security . | . . . . Squads Dispatched 2 | . . . 2 Investigation 2 | . . . 2 Extermination . | . . . . Reinforcement . | . . . . Assault . | . . . . Garrison . | . . . . Intercept . | . . . . Searches Triggered . | . . . . Construction Impeded . | . . . . Haulers Reinforced . | . . . . Active Scanning Responses . | . . . . Cargo Convoy Interrupts . | . . . . Stealth | -11 -10 -10 -9 --------- Run | Yrd Mat Min Mat Distress Signals 2 | . 1 . 1 Communications Jammed . | . . . . Distress Signals . | . . . . Times Spotted 25 | . 5 7 13 Peak Tracking Total 5 | . 2 3 5 Tactical Retreats . | . . . . Traps | -11 -10 -10 -9 ------- Run | Yrd Mat Min Mat Traps Triggered . | . . . . Indirectly . | . . . . Trap Hack Attempts . | . . . . Triggered . | . . . . Disarmed . | . . . . Reprogrammed . | . . . . Reused . | . . . . Traps Extracted . | . . . . Installed . | . . . . Triggered . | . . . . Machines | -11 -10 -10 -9 ---------- Run | Yrd Mat Min Mat Machines Disabled 4 | . . . 4 Max in Single Turn 2 | . . . 2 Machines Repaired . | . . . . Machines Dismantled . | . . . . Machines Sabotaged . | . . . . Overloaded Fab Kills . | . . . . Hacking | -11 -10 -10 -9 --------- Run | Yrd Mat Min Mat Machines Accessed 4 | . 1 . 3 Terminals 4 | . 1 . 3 Fabricators . | . . . . Repair Stations . | . . . . Recycling Units . | . . . . Scanalyzers . | . . . . Garrison Access . | . . . . Total Hacks 15 | . 2 . 13 Successful 11 | . 1 . 10 Failed 4 | . 1 . 3 Catastrophic 1 | . . . 1 Database Lockouts . | . . . . Manual . | . . . . Terminals 15 | . 2 . 13 Fabricators . | . . . . Repair Stations . | . . . . Recycling Units . | . . . . Scanalyzers . | . . . . Garrison Access . | . . . . Terminal Hacks 11 | . 1 . 10 Record 5 | . . . 5 Alert Level 1 | . . . 1 Locate Traps 1 | . 1 . . Dispatch Records 1 | . . . 1 Maintenance Status 1 | . . . 1 Transport Status 1 | . . . 1 Hauler Manifests 1 | . . . 1 Fabricator Hacks . | . . . . Repair Station Hacks . | . . . . Recycling Unit Hacks . | . . . . Scanalyzer . | . . . . Garrison Access Hacks . | . . . . Unauthorized Hacks . | . . . . Terminals . | . . . . Fabricators . | . . . . Repair Stations . | . . . . Recycling Units . | . . . . Scanalyzers . | . . . . Garrison Access . | . . . . Data Cores Recovered . | . . . . Used . | . . . . Hacking Detections 3 | . . . 3 Full Trace Events 2 | . . . 2 Feedback Events . | . . . . Feedback Blocked . | . . . . Robot Schematics Acquired . | . . . . Robots Built . | . . . . Authchips . | . . . . Time . | . . . . Total Robot Build Rating . | . . . . Part Schematics Acquired . | . . . . Parts Built . | . . . . Authchips . | . . . . Time . | . . . . Total Part Build Rating . | . . . . Parts Repaired . | . . . . Time . | . . . . Parts Recycled . | . . . . Recycled Matter . | . . . . Retrieved Matter . | . . . . Retrieved Components . | . . . . Parts Scanalyzed . | . . . . Part Schematics Acquired . | . . . . Parts Damaged . | . . . . Bothacking | -11 -10 -10 -9 ------------ Run | Yrd Mat Min Mat Used RIF Installer . | . . . . Robots Hacked . | . . . . Non-combat . | . . . . Combat . | . . . . Robot Hacks Applied . | . . . . Relay Couplers Released . | . . . . Fabnet Peak Effective % . | . . . . Robots Rewired . | . . . . Allies Hacked . | . . . . Hacks Repelled . | . . . . Allies | -11 -10 -10 -9 -------- Run | Yrd Mat Min Mat Total Allies 1 | . . 1 . Largest Group 1 | . . 1 1 Highest-Rated Group 31 | . . 31 31 Highest-Rated Ally 31 | . . 31 31 Total Orders . | . . . . Ally Attacks 6 | . . 3 3 Total Damage 62 | . . 20 42 Kills 1 | . . 1 . Allies Corrupted . | . . . . Allies Melted . | . . . . Intel | -11 -10 -10 -9 ------- Run | Yrd Mat Min Mat Robot Analysis Total . | . . . . Derelict Logs Recovered 2 | . . 2 . Drone Launches . | . . . . Drone Recoveries . | . . . . Exploration | -11 -10 -10 -9 ------------- Run | Yrd Mat Min Mat Turns Passed 878 | 41 198 303 336 Spaces Moved 768 | 40 194 320 214 Core 15 | 5 . . 10 Treads . | . . . . Legs 16 | . . . 16 Wheels 737 | 35 194 320 188 Hover . | . . . . Flight . | . . . . Fastest Speed 50 | 50 80 80 50 Average Speed 82 | 76 80 80 87 Slowest Speed 250 | 80 80 80 250 Overloaded Moves . | . . . . Propulsion Burnouts . | . . . . Robots Hopped . | . . . . Cave-ins Triggered . | . . . . Exploration Rate (%) 26 | 4 41 42 17 Regions Visited 3 Branch Regions 1 Pre-discovered Areas . | . . . . Known Exits Taken 1 | . . 1 . Unknown Exits Taken 2 | 1 1 . . Scrap Searched . | . . . . Spaces Dug . | . . . . Terrain Destroyed 139 | . . . 139 Melee . | . . . . Projectile . | . . . . AOE 139 | . . . 139 Terrain Rammed . | . . . . Walls Destroyed . | . . . . Machines Disabled . | . . . . Actions | -11 -10 -10 -9 --------- Run | Yrd Mat Min Mat Total 912 | 50 213 351 298 Wait 1 | . . . 1 Move 765 | 39 193 319 214 Hop . | . . . . Pick Up 38 | 6 4 7 21 Fast Attach . | . . . . Attach 17 | 5 2 1 9 Detach 1 | . . 1 . Swap 6 | . . 3 3 Drop 18 | . . 6 12 Fire 38 | . 13 10 15 Melee 22 | . . . 22 Ram 6 | . 1 4 1 Kick . | . . . . Crush . | . . . . Escape Stasis . | . . . . Rewire . | . . . . Trap . | . . . . Miscellaneous . | . . . . Route ------- -11/Scrapyard -10/Materials -10/Mines (discovered 2 exits: *Mat x2) -9/Materials History --------- Turn | Location | Event 29 | -11/Scrapyard | Discovered new exit (range 15) 42 | -11/Scrapyard | Entered Materials 232 | -10/Materials | Discovered new exit (range 9) 240 | -10/Materials | Entered Mines 241 | -10/Mines | Assembled infested the area 246 | -10/Mines | Assisted by a Guerilla fighting off Assembled 262 | -10/Mines | Identified exit to Materials 282 | -10/Mines | Learned Materials garrison access intel 314 | -10/Mines | Build established: Mutant 416 | -10/Mines | Received a Mining Laser from a helpful Derelict 521 | -10/Mines | Discovered exit to Materials (range 11) 543 | -10/Mines | Entered Materials 543 | -9/Materials | Accompanied by 1 ally 543 | -9/Materials | Evolved 2 slots: Power x1, Weapon x1 783 | -9/Materials | Core integrity fell below 50% 826 | -9/Materials | Lost 6 parts (2p2n2w) 867 | -9/Materials | Core integrity fell below 20% 879 | -9/Materials | Destroyed by G-34 Mercenary with Small Laser Last Messages --------------- 00863_ U-05 Engineer builds a Wall. 00865_ G-34 Mercenary knocked back. 00867_ U-05 Engineer lays Concrete. 00869_ Structural Scanner destroyed. 00869_ U-05 Engineer lays Concrete. 00871_ Imp. Ion Engine destroyed. 00871_ U-05 Engineer lays Concrete. 00872_ Destroyed Heat Sink. 00872_ G-34 Mercenary system corrupted by crushing effect. 00872_ G-34 Mercenary knocked back. 00873_ U-05 Engineer builds a Wall. 00874_ The unstable cave ceiling collapses. 00874_ U-05 Engineer lays Concrete. 00875_ The unstable cave ceiling collapses. 00875_ U-05 Engineer lays Concrete. 00875_ Aluminum Leg destroyed. 00876_ U-05 Engineer lays Concrete. 00877_ M-13 Machinist fits Backup Plating I on G-34 Mercenary. 00878_ U-05 Engineer builds a Wall. 00878_ U-05 Engineer lays Concrete. Map ----- +----------------------------------------------------+ | ????????????????????????????????????????????????? | | ????????????????????????????????????????????????? | | ????????????????????????????????????????????????? | | ??????????? ??????????????????????????????????? | | ?????????? ?????????????????????????????????? | | ????????? ????????????????????????????????? | | ?????????## ##????????????????????????????????? | | ########### ##????????????????????????????????? | | ########### ##????????????????????????????????? | | # ##????????????????????????????????? | | " """ """ # ##????????????????????????????????? | | " """ """ # ##????????????????????????????????? | | " """ """ # ############??????????????????????? | | # ############??????????????????????? | | ? # ## T ##??????????????????????? | | #### ## ## ## ##??????????????????????? | | #### # ##???? #"??????????????? | | # ##???? #"??????????????? | | / ##???? #"??????????????? | | [ # """ ##??? # ??????????????? | | # """ ##??? # ??????????????? | | ## ###### """ ##### # ????????????? | | = ########### ##### ########????????? | | ! ########/### ## ##### ????????? | | * """ "#######ugu # ????????? | | # """ "##??## @ + ?????????? | | *# """ "##?#### # ?????????? | | + T##?### u# ####??????????? | | # """ "##?## ##+######??????????? | | # """ "##?### ##??????????? | | # """ "##?## gm a ##??????????? | | # ##?#### ##??????????? | | ###########?#### # g ##??????????? | | ###########?## g/ """ ##??????????? | | ##??????????##!! ## R" ##??????????? | | ##??????????## ! ### """ ##??????????? | | ##??????????## ## ##??????????? | | ##??????????## "T" # ##?+#######??????????? | | ##??????????## """ # ? #######??????????? | | ##??????????######### ##???????????????? | | ##??????????###########+## ##???????????????? | | ##????????????????? # ##???????????????? | | ##????????????????????????? ##???????????????? | | ##????????????????????????? ???????????????? | | ##?????????????????????????? ?????????????? | | #####??????????????????????????####?????????????? | | ####??????????????????????????? ?????????????? | | ????????????????????????????????????????????????? | | ????????????????????????????????????????????????? | | ????????????????????????????????????????????????? | +----------------------------------------------------+ Best States ------------- Heat Dissipation 28 Energy Generation 15 Energy Capacity 265 Matter Stores 300 Matter Capacity 300 Sight Range 16 Robot Scan Range 14 Terrain Scan Density 10 Evasion (%) 55 Targeting Accuracy 6 Item Schematics ----------------- None Robot Schematics ------------------ None Fabricated ------------ Nothing Alien Tech Used ----------------- None Achievements -------------- None Challenges ------------ None Game ------ Seed SiegeVisualInterrupter Manual? 0 Play Time 00:13:06 Cumulative 15.6 hours Start 2024.08.14 @ 23:17:13 End 2025.01.08 @ 21:01:42 Sessions 3 Manual Loads 0 Difficulty Rogue Special Mode None Game No. 53 Rogue 53 Adventurer 0 Explorer 0 Win Type - Total 0 Types 0/0/0/0/0/0/0/0/0 Lore% 9 Gallery% 20 Achievement% 19 Wizard Run 0 Options --------- Layout 0 ASCII 0 Keyboard 0 Movement Numpad Keybinds 0 Fullscreen 1 Font 18/SmallcapsGlow Map View 76x50 Zoom Use 0% Tactical HUD 1 Map Filters NONE Filters NONE Steam 1 RUN: 80b2aadf-9d05-45bc-b355-83089591ef7b